lending/lending_fUSD_20260209
["ID","MTS","AMOUNT","RATE_DAILY","PERIOD"]
[404870295,1770631869183,-500.0,0.00044356,120]
[404870296,1770631869192,-500.0,0.00044356,120]
[404870297,1770631869202,-500.0,0.00044356,120]
[404870298,1770631869212,-957.807549,0.00044356,120]
[404870299,1770631869221,-587.28640187,0.00044356,120]
[404870300,1770631869231,-500.0,0.00044356,120]
[404870301,1770631869243,-500.0,0.00044356,120]
[404870302,1770631869252,-957.807549,0.00044356,120]
[404870303,1770631869262,-500.0,0.00044356,120]
[404870304,1770631869272,-520.3111747,0.00044356,120]
[404870305,1770631869281,-957.807549,0.00044356,120]
[404870306,1770631869290,-500.0,0.00044356,120]
[404870307,1770631869299,-500.0,0.00044356,120]
[404870308,1770631869310,-500.0,0.00044356,120]
[404870309,1770631869320,-957.807549,0.00044356,120]
[404870310,1770631869332,-500.0,0.00044356,120]
[404870311,1770631869341,-500.0,0.00044356,120]
[404870312,1770631869351,-957.807549,0.00044356,120]
[404870313,1770631869362,-500.0,0.00044356,120]
[404870314,1770631869371,-500.0,0.00044356,120]
[404870315,1770631869381,-957.807549,0.00044356,120]
[404870316,1770631869391,-500.0,0.00044356,120]
[404870317,1770631869401,-500.0,0.00044356,120]
[404870318,1770631869411,-500.0,0.00044356,120]
[404870319,1770631869421,-957.807549,0.00044356,120]
[404870320,1770631869430,-500.0,0.00044356,120]
[404870321,1770631869439,-500.0,0.00044356,120]
[404870322,1770631869448,-500.0,0.00044356,120]
[404870323,1770631869457,-500.0,0.00044356,120]
[404870324,1770631869467,-957.807549,0.00044356,120]
[404870325,1770631869477,-500.0,0.00044356,120]
[404870326,1770631869487,-500.0,0.00044356,120]
[404870327,1770631869496,-500.0,0.00044356,120]
[404870328,1770631869506,-500.0,0.00044356,120]
[404870329,1770631869515,-957.807549,0.00044356,120]
[404870330,1770631869527,-500.0,0.00044356,120]
[404870331,1770631869537,-500.0,0.00044356,120]
[404870332,1770631869546,-555.66,0.00044356,120]
[404870333,1770631869556,-500.0,0.00044356,120]
[404870334,1770631869566,-500.0,0.00044356,120]
[404870335,1770631869576,-349.1692959,0.00044356,120]
[404870336,1770631869586,-508.55218609,0.00044356,120]
[404870337,1770631869595,-957.807549,0.00044356,120]
[404870338,1770631869609,-555.66,0.00044356,120]
[404870339,1770631869619,-500.0,0.00044356,120]
[404870340,1770631869630,-500.0,0.00044356,120]
[404870341,1770631869639,-500.0,0.00044356,120]
[404870342,1770631869650,-957.807549,0.00044356,120]
[404870343,1770631869660,-555.66,0.00044356,120]
[404870344,1770631869670,-500.0,0.00044356,120]
[404870345,1770631869679,-500.0,0.00044356,120]
[404870346,1770631869689,-500.0,0.00044356,120]
[404870347,1770631869698,-555.66,0.00044356,120]
[404870348,1770631869707,-500.0,0.00044356,120]
[404870349,1770631869716,-500.0,0.00044356,120]
[404870350,1770631869725,-500.0,0.00044356,120]
[404870351,1770631869735,-957.807552,0.00044356,120]
[404870352,1770631869745,-500.0,0.00044356,120]
[404870353,1770631869755,-555.66,0.00044356,120]
[404870354,1770631869764,-500.0,0.00044356,120]
[404870355,1770631869774,-500.0,0.00044356,120]
[404870356,1770631869784,-500.0,0.00044356,120]
[404870357,1770631869793,-500.0,0.00044356,120]
[404870358,1770631869803,-555.66,0.00044356,120]
[404870359,1770631869813,-500.0,0.00044356,120]
[404870360,1770631869822,-569.88560542,0.00044356,120]
[404870361,1770631869832,-541.66828621,0.00044356,120]
[404870362,1770631869841,-500.0,0.00044356,120]
[404870363,1770631869850,-500.0,0.00044356,120]
[404870364,1770631869859,-555.66,0.00044356,120]
[404870365,1770631869869,-500.0,0.00044356,120]
[404870366,1770631869879,-555.66,0.00044356,120]
[404870367,1770631869887,-500.0,0.00044356,120]
[404870368,1770631869896,-500.0,0.00044356,120]
[404870369,1770631869905,-555.66,0.00044356,120]
[404870370,1770631869914,-500.0,0.00044356,120]
[404870371,1770631869923,-506.32075954,0.00044356,120]
[404870372,1770631869933,-544.70576271,0.00044356,120]
[404870373,1770631869942,-555.66,0.00044356,120]
[404870374,1770631869952,-460.78420853,0.00044356,120]
[404870375,1770631869961,-614.66,0.00044356,120]
[404870376,1770631869971,-555.66,0.00044356,120]
[404870377,1770631869980,-614.66,0.00044356,120]
[404870378,1770631869990,-555.66,0.00044356,120]
[404870379,1770631869999,-614.66,0.00044356,120]
[404870380,1770631870010,-555.66,0.00044356,120]
[404870381,1770631870019,-500.0,0.00044356,120]
[404870382,1770631870028,-614.66,0.00044356,120]
[404870383,1770631870037,-555.66,0.00044356,120]
[404870384,1770631870046,-500.0,0.00044356,120]
[404870385,1770631870056,-614.66,0.00044356,120]
[404870386,1770631870065,-555.66,0.00044356,120]
[404870387,1770631870075,-500.0,0.00044356,120]
[404870388,1770631870084,-522.04418988,0.00044356,120]
[404870389,1770631870093,-614.66,0.00044356,120]
[404870390,1770631870102,-555.66,0.00044356,120]
[404870391,1770631870111,-614.66,0.00044356,120]
[404870392,1770631870232,-555.66,0.00044356,120]
[404870393,1770631870244,-659.68,0.00044356,120]
[404870394,1770631870253,-614.66,0.00044356,120]
[404870395,1770631870264,-659.68,0.00044356,120]
[404870396,1770631870273,-555.66,0.00044356,120]
[404870397,1770631870284,-614.66,0.00044356,120]
[404870398,1770631870294,-659.68,0.00044356,120]
[404870399,1770631870304,-555.66,0.00044356,120]
[404870400,1770631870313,-659.68,0.00044356,120]
[404870401,1770631870327,-555.66,0.00044356,120]
[404870402,1770631870337,-659.68,0.00044356,120]
[404870403,1770631870346,-555.66,0.00044356,120]
[404870404,1770631870355,-614.66,0.00044356,120]
[404870405,1770631870365,-659.68,0.00044356,120]
[404870406,1770631870374,-555.66,0.00044356,120]
[404870407,1770631870384,-604.28995432,0.00044356,120]
[404870408,1770631870394,-500.0,0.00044356,120]
[404870409,1770631870404,-614.66,0.00044356,120]
[404870410,1770631870414,-500.0,0.00044356,120]
[404870411,1770631870423,-659.68,0.00044356,120]
[404870412,1770631870432,-555.66,0.00044356,120]
[404870413,1770631870442,-614.66,0.00044356,120]
[404870414,1770631870451,-501.59145176,0.00044356,120]
[404870415,1770631870461,-500.0,0.00044356,120]
[404870416,1770631870470,-659.68,0.00044356,120]
[404870417,1770631870480,-555.88338353,0.00044356,120]
[404870418,1770631870491,-527.38077202,0.00044356,120]
[404870419,1770631870500,-614.66,0.00044356,120]
[404870420,1770631870510,-639.59906421,0.00044356,120]
[404870421,1770631870519,-659.68,0.00044356,120]
[404870422,1770631870529,-614.66,0.00044356,120]
[404870423,1770631870538,-659.68,0.00044356,120]
[404870424,1770631870547,-659.68,0.00044356,120]
[404870425,1770631870557,-659.68,0.00044356,120]
[404870426,1770631870566,-659.68,0.00044356,120]
[404870427,1770631870576,-539.14923282,0.00044356,120]
[404870428,1770631870586,-659.68,0.00044356,120]
[404870429,1770631870595,-659.68,0.00044356,120]
[404870430,1770631870605,-500.0,0.00044356,120]
[404870431,1770631870615,-500.0,0.00044356,120]
[404870432,1770631870624,-659.68,0.00044356,120]
[404870433,1770631870635,-500.0,0.00044356,120]
[404870434,1770631870644,-500.0,0.00044356,120]
[404870435,1770631870654,-500.0,0.00044356,120]
[404870436,1770631870663,-566.19440692,0.00044356,120]
[404870437,1770631870673,-500.0,0.00044356,120]
[404870438,1770631870682,-500.0,0.00044356,120]
[404870439,1770631870692,-659.68,0.00044356,120]
[404870440,1770631870701,-500.0,0.00044356,120]
[404870441,1770631870711,-576.96804551,0.00044356,120]
[404870442,1770631870720,-659.68,0.00044356,120]
[404870443,1770631870730,-500.0,0.00044356,120]
[404870444,1770631870741,-500.0,0.00044356,120]
[404870445,1770631870750,-659.68,0.00044356,120]
[404870446,1770631870759,-500.0,0.00044356,120]
[404870447,1770631870769,-556.74196727,0.00044356,120]
[404870448,1770631870780,-530.07557932,0.00044356,120]
[404870449,1770631870789,-659.68,0.00044356,120]
[404870450,1770631870799,-500.0,0.00044356,120]
[404870451,1770631870809,-659.68,0.00044356,120]
[404870452,1770631870818,-529.21107526,0.00044356,120]
[404870453,1770631870828,-659.68,0.00044356,120]
[404870454,1770631870837,-659.68,0.00044356,120]
[404870455,1770631870846,-535.56843861,0.00044356,120]
[404870456,1770631870856,-659.91332048,0.00044356,120]
[404870457,1770631870866,-500.0,0.00044356,120]
[404870458,1770631870875,-500.0,0.00044356,120]
[404870459,1770631870885,-500.0,0.00044356,120]
[404870460,1770631870895,-500.0,0.00044356,120]
[404870461,1770631870905,-500.0,0.00044356,120]
[404870462,1770631870914,-500.0,0.00044356,120]
[404870463,1770631870923,-500.0,0.00044356,120]
[404870464,1770631870933,-510.50973915,0.00044356,120]
[404870465,1770631870942,-500.0,0.00044356,120]
[404870466,1770631870951,-509.40527024,0.00044356,120]
[404870467,1770631870961,-500.0,0.00044356,120]
[404870468,1770631870970,-500.0,0.00044356,120]
[404870469,1770631870980,-500.0,0.00044356,120]
[404870470,1770631870991,-500.0,0.00044356,120]
[404870471,1770631871000,-552.76706379,0.00044356,120]
[404870472,1770631871010,-500.0,0.00044356,120]
[404870473,1770631871019,-500.0,0.00044356,120]
[404870474,1770631871028,-500.0,0.00044356,120]
[404870475,1770631871037,-500.0,0.00044356,120]
[404870476,1770631871056,-500.0,0.00044356,120]
[404870477,1770631871073,-500.0,0.00044356,120]
[404870478,1770631871091,-500.0,0.00044356,120]
[404870479,1770631871109,-188.14692401,0.00044356,120]
[404870480,1770631871128,-603.88243643,0.00044356,120]
[404870481,1770631871142,-500.0,0.00044356,120]
[404870482,1770631871161,-500.0,0.00044356,120]
[404870483,1770631871179,-500.0,0.00044356,120]
[404870484,1770631871196,-500.0,0.00044356,120]
[404870485,1770631871215,-500.0,0.00044356,120]
[404870486,1770631871233,-500.0,0.00044356,120]
[404870487,1770631871251,-500.0,0.00044356,120]
[404870488,1770631871270,-500.0,0.00044356,120]
[404870489,1770631871283,-500.0,0.00044356,120]
[404870490,1770631871300,-500.0,0.00044356,120]
[404870491,1770631871315,-500.0,0.00044356,120]
[404870492,1770631871332,-500.0,0.00044356,120]
[404870493,1770631871349,-500.0,0.00044356,120]
[404870494,1770631871361,-911.52,0.00044356,120]
[404870495,1770631871377,-534.63167982,0.00044356,120]
[404870496,1770631871391,-500.0,0.00044356,120]
[404870497,1770631871407,-151.49795458,0.00044356,120]
[404870498,1770631871421,-911.52,0.00044356,120]
[404870499,1770631871436,-500.0,0.00044356,120]
[404870500,1770631871450,-500.0,0.00044356,120]
[404870501,1770631871464,-911.52,0.00044356,120]
[404870502,1770631871479,-500.0,0.00044356,120]
[404870503,1770631871494,-526.00774523,0.00044356,120]
[404870504,1770631871509,-911.52,0.00044356,120]
[404870505,1770631871523,-531.29984921,0.00044356,120]
[404870506,1770631871538,-500.0,0.00044356,120]
[404870507,1770631871553,-500.0,0.00044356,120]
[404870508,1770631871567,-911.52,0.00044356,120]
[404870509,1770631871582,-500.0,0.00044356,120]
[404870510,1770631871596,-500.0,0.00044356,120]
[404870511,1770631871611,-911.52,0.00044356,120]
[404870512,1770631871624,-500.0,0.00044356,120]
[404870513,1770631871638,-500.0,0.00044356,120]
[404870514,1770631871652,-911.52,0.00044356,120]
[404870515,1770631871667,-500.0,0.00044356,120]
[404870516,1770631871682,-500.0,0.00044356,120]
[404870517,1770631871697,-911.52,0.00044356,120]
[404870518,1770631871711,-500.0,0.00044356,120]
[404870519,1770631871727,-500.0,0.00044356,120]
[404870520,1770631871741,-911.52,0.00044356,120]
[404870521,1770631871755,-500.0,0.00044356,120]
[404870522,1770631871769,-911.52,0.00044356,120]
[404870523,1770631871783,-500.0,0.00044356,120]
[404870524,1770631871798,-289.41718144,0.00044356,120]
[404870525,1770631871812,-500.0,0.00044356,120]
[404870526,1770631871827,-911.52,0.00044356,120]
[404870527,1770631871843,-500.0,0.00044356,120]
[404870528,1770631871857,-911.52,0.00044356,120]
[404870529,1770631871871,-500.0,0.00044356,120]
[404870530,1770631871886,-911.52,0.00044356,120]
[404870531,1770631871901,-500.0,0.00044356,120]
[404870532,1770631871916,-911.52,0.00044356,120]
[404870533,1770631871930,-500.0,0.00044356,120]
[404870534,1770631871946,-259.22,0.00044356,120]
[404870535,1770631871961,-509.7090087,0.00044356,120]
[404870536,1770631871975,-593.36,0.00044356,120]
[404870537,1770631871990,-500.0,0.00044356,120]
[404870538,1770631872005,-500.0,0.00044356,120]
[404870539,1770631872020,-500.0,0.00044356,120]
[404870540,1770631872034,-593.36,0.00044356,120]
[404870541,1770631872048,-500.0,0.00044356,120]
[404870542,1770631872064,-500.0,0.00044356,120]
[404870543,1770631872083,-593.36,0.00044356,120]
[404870544,1770631872096,-500.0,0.00044356,120]
[404870545,1770631872105,-593.36,0.00044356,120]
[404870546,1770631872115,-500.0,0.00044356,120]
[404870547,1770631872125,-500.0,0.00044356,120]
[404870548,1770631872135,-593.36,0.00044356,120]
[404870549,1770631872144,-500.0,0.00044356,120]
[404870550,1770631872154,-500.0,0.00044356,120]
[404870551,1770631872163,-593.36,0.00044356,120]
[404870552,1770631872173,-500.0,0.00044356,120]
[404870553,1770631872182,-500.0,0.00044356,120]
[404870554,1770631872192,-593.36,0.00044356,120]
[404870555,1770631872201,-500.0,0.00044356,120]
[404870556,1770631872211,-500.0,0.00044356,120]
[404870557,1770631872220,-593.36,0.00044356,120]
[404870558,1770631872230,-500.0,0.00044356,120]
[404870559,1770631872461,-911.52,0.00044356,120]
[404870560,1770631872485,-528.60430631,0.00044356,120]
[404870561,1770631872495,-593.36,0.00044356,120]
[404870562,1770631872505,-500.0,0.00044356,120]
[404870563,1770631872514,-911.52,0.00044356,120]
[404870564,1770631872525,-500.0,0.00044356,120]
[404870565,1770631872535,-593.36,0.00044356,120]
[404870566,1770631872544,-911.52,0.00044356,120]
[404870567,1770631872554,-500.0,0.00044356,120]
[404870568,1770631872563,-593.36,0.00044356,120]
[404870569,1770631872572,-911.52,0.00044356,120]
[404870570,1770631872582,-500.0,0.00044356,120]
[404870571,1770631872592,-500.0,0.00044356,120]
[404870572,1770631872611,-593.36,0.00044356,120]
[404870573,1770631872623,-911.52,0.00044356,120]
[404870574,1770631872634,-285.15880248,0.00044356,120]
[404870575,1770631872643,-593.36,0.00044356,120]
[404870576,1770631872652,-911.52,0.00044356,120]
[404870577,1770631872662,-911.52,0.00044356,120]
[404870578,1770631872671,-593.36,0.00044356,120]
[404870579,1770631872679,-911.52,0.00044356,120]
[404870580,1770631872688,-911.52,0.00044356,120]
[404870581,1770631872697,-500.0,0.00044356,120]
[404870582,1770631872707,-500.0,0.00044356,120]
[404870583,1770631872716,-607.80256165,0.00044356,120]
[404870584,1770631873451,-291.13428154,0.00044256,2]
[404870585,1770631873567,-488.26008632,0.00044256,2]
[404870586,1770631873595,-169.06660908,0.00044256,2]
[404870587,1770631873613,-303.76884312,0.00044356,120]
[404870588,1770631873624,-500.0,0.00044356,120]
[404870589,1770631873633,-500.0,0.00044356,120]
[404870590,1770631873645,-500.0,0.00044356,120]
[404870591,1770631873655,-500.0,0.00044356,120]
[404870592,1770631873665,-512.01327693,0.00044356,120]
[404870593,1770631873674,-500.0,0.00044356,120]
[404870594,1770631873684,-500.0,0.00044356,120]
[404870595,1770631873694,-500.0,0.00044356,120]
[404870596,1770631873704,-500.0,0.00044356,120]
[404870597,1770631873713,-500.0,0.00044356,120]
[404870598,1770631873721,-500.0,0.00044356,120]
[404870599,1770631873731,-500.0,0.00044356,120]
[404870600,1770631873742,-500.0,0.00044356,120]
[404870601,1770631873751,-500.0,0.00044356,120]
[404870602,1770631873760,-500.0,0.00044356,120]
[404870603,1770631873770,-500.0,0.00044356,120]
[404870604,1770631873780,-500.0,0.00044356,120]
[404870605,1770631873789,-500.0,0.00044356,120]
[404870606,1770631873798,-500.0,0.00044356,120]
[404870607,1770631873808,-500.0,0.00044356,120]
[404870608,1770631873817,-500.0,0.00044356,120]
[404870609,1770631873827,-500.0,0.00044356,120]
[404870610,1770631873837,-331.98717974,0.00044356,120]
[404870611,1770631873846,-500.0,0.00044356,120]
[404870612,1770631873856,-500.0,0.00044356,120]
[404870613,1770631873866,-500.0,0.00044356,120]
[404870614,1770631873875,-500.0,0.00044356,120]
[404870615,1770631873885,-105.16409113,0.00044356,120]
[404870616,1770631873906,-394.83590887,0.00044356,120]
[404870617,1770631873916,-500.0,0.00044356,120]
[404870618,1770631873925,-500.0,0.00044356,120]
[404870619,1770631873935,-500.0,0.00044356,120]
[404870620,1770631873945,-500.0,0.00044356,120]
[404870621,1770631873955,-500.0,0.00044356,120]
[404870622,1770631873965,-500.0,0.00044356,120]
[404870623,1770631873975,-500.0,0.00044356,120]
[404870624,1770631873985,-509.42118323,0.00044356,120]
[404870625,1770631873995,-248.20144176,0.00044356,120]
[404870626,1770631874006,-521.81,0.00044356,120]
[404870627,1770631874017,-2313.22,0.00044356,120]
[404870628,1770631874026,-521.81,0.00044356,120]
[404870629,1770631874036,-500.0,0.00044356,120]
[404870630,1770631874045,-2313.22,0.00044356,120]
[404870631,1770631874054,-328.91045589,0.00044356,120]
[404870632,1770631874067,-192.89954411,0.00044356,120]
[404870633,1770631874076,-413.01391018,0.00044356,120]
[404870635,1770632057333,335.625,0.00035589,30]
[404870636,1770632555051,3300.0,0.00035616,30]
[404870647,1770632947227,-1159.98494692,0.0001999,2]
[404870648,1770632947248,-1021.28543363,0.00035,10]
[404870660,1770633032223,-1352.40963468,0.00035,10]
[404870661,1770633032234,-200.0495081,0.000387,2]
[404870662,1770633032243,-2514.5805028,0.000388,7]
[404870663,1770633032253,-500.0,0.000388,5]
[404870664,1770633032262,-299.58136643,0.000388,5]
[404870665,1770633032272,-500.0,0.000388,5]
[404870666,1770633032282,-5180.11969551,0.000391,120]
[404870667,1770633032291,-3648.66,0.00039103,2]
[404870668,1770633032300,-1000.0,0.00041279,2]
[404870669,1770633032309,-323.9801634,0.0004245,2]
[404870670,1770633032319,-708.35727708,0.000426,15]
[404870671,1770633032328,-322.24194831,0.000426,120]
[404870672,1770633032338,-5253.13692362,0.00042681,2]
[404870673,1770633032347,-176.75618032,0.00042681,8]
[404870674,1770633032356,-570.40217037,0.00042684,2]
[404870675,1770633032366,-163.21032258,0.0004269,7]
[404870676,1770633032375,-244.96894628,0.00042699,31]
[404870677,1770633032385,-362.19063917,0.00042699,31]
[404870678,1770633032394,-500.0,0.00042699,31]
[404870679,1770633032403,-351.45580054,0.00042699,31]
[404870680,1770633032412,-500.0,0.00042699,31]
[404870681,1770633032421,-500.0,0.00042699,31]
[404870682,1770633032431,-563.17641703,0.00042699,31]
[404870683,1770633032440,-493.91535145,0.00042699,31]
[404870684,1770633032449,-500.0,0.00042699,31]
[404870685,1770633032458,-373.73594086,0.00042699,31]
[404870686,1770633032468,-500.0,0.00042699,31]
[404870687,1770633032476,-11441.87768371,0.00042699,53]
[404870688,1770633032486,-1020.54048194,0.00042699,53]
[404870689,1770633032497,-454.19104179,0.00042699,53]
[404870690,1770633032509,-715.52,0.00042699,53]
[404870691,1770633032520,-4947.5154,0.00042699,53]
[404870692,1770633037277,-1744.10473193,0.00042699,53]
[404870693,1770633037286,-20259.21793403,0.000427,2]
[404870694,1770633037383,-3968.95087844,0.000427,2]
[404870733,1770633038440,-517.10802809,0.000426,2]
[404870734,1770633038452,-482.89197191,0.000426,2]
[404870735,1770633038462,-20440.0080281,0.000427,2]
[404870752,1770633040256,-1178.78006967,0.000427,2]
[404870753,1770633040267,-634.43148903,0.000427,2]
[404870754,1770633040278,-267.11088741,0.000427,2]
[404870755,1770633040289,-1016.60000004,0.000427,2]
[404870756,1770633040300,-16017.71989803,0.000427,2]
[404870757,1770633040311,-2279.10000001,0.000427,2]
[404870758,1770633040582,-1090.0512326,0.000427,2]
[404871043,1770633043898,-151.0,0.00037996,14]
[404871044,1770633043908,-151.0,0.00041376,14]
[404871045,1770633043917,-7947.41162735,0.000427,2]
[404871046,1770633043928,-361400.76424279,0.000427,2]
[404871047,1770633044734,-1226.99980761,0.000427,2]
[404871048,1770633044767,-2488.02861323,0.000427,2]
[404871049,1770633044799,-300.90580761,0.000427,2]
[404871050,1770633044811,-699.25908594,0.000427,2]
[404871053,1770633046274,-27722.00000001,0.000427,2]
[404871054,1770633046330,-1500.0,0.000427,2]
[404871061,1770633339032,-153.0,0.00025,7]
[404871062,1770633339219,-65.05335338,0.00025,7]
[404871063,1770633857281,201.375,0.00035589,120]
[404871064,1770634008415,676414.8132558,0.000356,30]
[404871065,1770634231248,-166.66,0.00036764,30]
[404871066,1770634231258,-128.4308251,0.00037538,30]
[404871067,1770634231270,-38.2291749,0.00037538,30]
[404871068,1770634231280,-160.0,0.00038237,2]
[404871069,1770634231290,-166.66,0.00038312,30]
[404871070,1770634231299,-300.0,0.00038599,5]
[404871071,1770634231309,-276.0,0.00038599,5]
[404871072,1770634231319,-1021.05436718,0.00038599,5]
[404871073,1770634231335,-312.7,0.00038599,5]
[404871074,1770634231347,-266.24563282,0.00038599,5]
[404871075,1770634231356,-804.4538379,0.000386,2]
[404871076,1770634231366,-176.75618032,0.000386,7]
[404871077,1770634231375,-1599.05470885,0.000386,2]
[404871078,1770634231384,-696.84703475,0.00038689,2]
[404871079,1770634231395,-153.58,0.00038689,2]
[404871080,1770634231404,-3179.44126198,0.00038699,28]
[404871081,1770634231416,-54779.94044708,0.00038699,28]
[404871082,1770634231425,-7562.9541,0.00038699,2]
[404871083,1770634231435,-34539.2204447,0.00038699,2]
[404871084,1770634231448,-428.83006423,0.00038699,2]
[404871085,1770634231459,-343.345,0.00038699,2]
[404871086,1770634231471,-19524.97581632,0.00038699,2]
[404871087,1770634231491,-12552.18742298,0.00038699,2]
[404871088,1770634231502,-1491.53744342,0.00038699,2]
[404871115,1770634237315,-346.4848386,0.000386,2]
[404871116,1770634237332,-3155.60644382,0.000386,2]
[404871117,1770634237343,-253.53344742,0.00038698,15]
[404871118,1770634237354,-500.0,0.00038698,15]
[404871119,1770634237364,-171.4782624,0.00038698,15]
[404871120,1770634237374,-196.7166407,0.00038698,15]
[404871121,1770634237383,-500.0,0.00038698,15]
[404871122,1770634237395,-312.63328349,0.00038698,15]
[404871123,1770634237405,-500.0,0.00038698,15]
[404871124,1770634237415,-316.06642603,0.00038698,15]
[404871125,1770634237425,-563.18241587,0.00038698,7]
[404871126,1770634237435,-500.0,0.00038698,15]
[404871127,1770634237444,-432.95561628,0.00038698,15]
[404871128,1770634237453,-500.0,0.00038698,15]
[404871129,1770634237463,-500.0,0.00038698,15]
[404871130,1770634237472,-500.0,0.00038698,15]
[404871131,1770634237482,-212.93218352,0.00038698,15]
[404871132,1770634237492,-500.0,0.00038698,15]
[404871133,1770634237501,-500.0,0.00038698,15]
[404871134,1770634237511,-500.0,0.00038698,15]
[404871135,1770634237520,-500.0,0.00038698,15]
[404871136,1770634237529,-500.0,0.00038698,15]
[404871137,1770634237539,-500.0,0.00038698,15]
[404871138,1770634237548,-500.0,0.00038698,15]
[404871139,1770634237557,-500.0,0.00038698,15]
[404871140,1770634237570,-500.0,0.00038698,15]
[404871141,1770634237581,-500.0,0.00038698,15]
[404871142,1770634237590,-500.0,0.00038698,15]
[404871143,1770634237599,-500.0,0.00038698,15]
[404871144,1770634237609,-500.0,0.00038698,15]
[404871145,1770634237618,-500.0,0.00038698,15]
[404871146,1770634237627,-7977.06175417,0.00038699,2]
[404871147,1770634237677,-720.01455073,0.00038699,2]
[404871148,1770634237690,-915.68180285,0.00038699,2]
[404871149,1770634237701,-69000.00000007,0.00038699,2]
[404871150,1770634237712,-269271.50747397,0.00038699,2]
[404871151,1770634237724,-1051.74850456,0.00038699,2]
[404871152,1770634237742,-1234.3700054,0.00038699,2]
[404871153,1770634237754,-639.31888652,0.00038699,2]
[404871154,1770634237765,-11737.65924844,0.00038699,2]
[404871155,1770634237776,-1208587.8708336,0.00038699,2]
[404871156,1770634237801,-796.55986639,0.00038699,2]
[404871157,1770634237814,-4932.1520001,0.00038699,2]
[404871158,1770634237827,-2824.62425539,0.00038699,2]
[404871159,1770634237838,-366.10283901,0.00038699,2]
[404871160,1770634237848,-3324.72444597,0.00038699,2]
[404871164,1770634239604,-1123.42602351,0.00038699,2]
[404871165,1770634239615,-3437.5,0.00038699,2]
[404871166,1770634239637,-972.15998328,0.00038699,2]
[404871167,1770634239651,-2686.33704364,0.00038699,2]
[404871168,1770634239679,-76464.1583533,0.00038699,2]
[404871169,1770634239690,-871.29316464,0.00038699,2]
[404871170,1770634239733,-2315.09651318,0.00038699,2]
[404871171,1770634239744,-1825.86696782,0.00038699,2]
[404871172,1770634239755,-1421322.95785393,0.00038699,2]
[404871317,1770634242965,-160.05580748,0.000386,2]
[404871319,1770634242975,-2036.62598015,0.000386,2]
[404871320,1770634242984,-163.21032258,0.00038689,2]
[404871321,1770634242993,-255913.22572927,0.00038699,2]
[404871322,1770634243041,-44.52022632,0.00038699,2]
[404871323,1770634243053,-709.17,0.00038699,2]
[404871324,1770634243065,-7588.92766263,0.00038699,2]
[404871325,1770634243076,-3163.88365613,0.00038699,2]
[404871326,1770634243749,-344.469,0.00038699,2]
[404871332,1770634245318,-405.8537147,0.00038699,2]
[404871333,1770634245329,-4296.75088854,0.00038699,2]
[404871334,1770634245372,-13259.25836996,0.00038699,2]
[404871335,1770634245383,-1447.58,0.00038699,2]
[404871336,1770634245394,-34396.1014786,0.00038699,2]
[404871337,1770634245405,-259.83695299,0.00038699,2]
[404871338,1770634245416,-4826.16286284,0.00038699,2]
[404871339,1770634245534,-10065.9708959,0.00038699,2]
[404871340,1770634245545,-892.42038534,0.000387,2]
[404871343,1770634245777,-214.82796554,0.000387,2]